bitfinex-derivatives/quotes_ETHF0:USTF0_20240907
["timestamp","ask_amount","ask_price","bid_price","bid_amount"]
[1725741947214,0.4371,2278.8,2278.6,0.87898]
[1725741947404,2.66134,2278.9,2278.6,0.87898]
[1725741951307,2.2225,2278.9,2278.8,0.43884]
[1725741951609,1.778,2278.9,2278.8,0.43884]
[1725741952312,1.34,2278.9,2278.8,0.43884]
[1725741956817,3.2078,2279.0,2278.9,0.43883]
[1725741957015,3.6799,2279.0,2278.9,0.43883]
[1725741957917,3.6799,2279.0,2278.9,0.90703]
[1725741962420,3.2078,2279.0,2278.9,0.90703]
[1725741962614,3.2078,2279.4,2279.3,0.43875]
[1725741962814,8.71190931,2279.9,2279.3,4.82594]
[1725741962815,3.6465,2279.6,2279.3,4.82594]
[1725741963120,0.4605,2279.5,2279.3,0.43874]
[1725741963723,0.89921,2279.5,2279.3,0.43874]
[1725741964115,0.4605,2279.5,2279.3,0.43874]
[1725741966425,0.4605,2279.5,2279.4,0.43873]
[1725741967119,0.4605,2279.5,2279.3,0.43874]
[1725741967317,0.4605,2279.5,2279.4,0.43873]
[1725741967517,0.4605,2279.5,2279.3,0.43873]
[1725741967720,0.89921,2279.5,2279.3,0.43873]
[1725741967917,3.2078,2279.4,2279.3,0.43873]
[1725741972911,0.4319,2279.8,2279.7,0.43867]
[1725741973112,7.7818,2279.9,2279.8,0.43865]
[1725741973113,3.2078,2279.9,2279.8,0.43865]
[1725741973625,3.2078,2279.9,2279.8,4.82505]
[1725741975224,3.2078,2279.9,2279.8,0.43865]
[1725741975420,3.2078,2279.9,2279.8,4.82505]
[1725741975827,3.2078,2279.9,2279.8,0.43865]
[1725741979629,3.2078,2280.0,2279.8,0.43865]
[1725741980429,3.2078,2280.0,2279.9,0.4382]
[1725741981628,3.2078,2280.0,2279.9,0.87683]
[1725741981829,7.77834,2280.4,2279.9,4.8246]
[1725741982032,3.2078,2280.4,2280.2,0.43857]
[1725741982242,3.2078,2280.4,2280.3,0.87516]
[1725741983038,3.2078,2280.4,2280.3,0.4366]
[1725741983227,1.31712,2280.5,2280.3,0.4366]
[1725741983533,0.8786,2280.5,2280.3,0.87515]
[1725741983931,0.8786,2280.5,2280.1,0.43859]
[1725741983932,0.43856,2280.3,2280.1,0.43859]
[1725741984134,1.77856,2280.3,2280.1,0.43859]
[1725741984336,1.34,2280.3,2280.0,1.345]
[1725741984635,1.34,2280.3,2280.1,0.43858]
[1725741984834,1.34,2280.3,2280.2,0.43857]
[1725741986732,1.77856,2280.3,2280.2,0.43857]
[1725741986938,1.77856,2280.3,2280.1,0.43859]
[1725741987634,1.77856,2280.3,2280.2,0.43857]
[1725741987827,1.77856,2280.3,2280.1,0.43858]
[1725741988025,0.4624,2280.2,2280.1,0.43858]
[1725741988425,0.90097,2280.2,2280.1,0.43858]
[1725741988833,0.4624,2280.2,2280.1,0.43858]
[1725741990033,1.77857,2280.3,2280.1,0.43858]
[1725741991036,4.98635,2280.4,2280.2,0.43857]
[1725741991336,4.98635,2280.4,2280.3,0.4466]
[1725741993944,0.43856,2280.3,2280.2,0.43857]
[1725741994337,4.98635,2280.4,2280.2,0.43857]
[1725741995733,3.2078,2280.7,2280.2,5.7256]
[1725741995936,4.56168,2280.7,2280.5,0.4385]
[1725741996237,4.56168,2280.7,2280.5,0.43851]
[1725741996238,0.4385,2280.6,2280.5,0.43851]
[1725741996431,1.7785,2280.6,2280.5,0.43851]
[1725741997042,1.7785,2280.6,2280.5,0.43852]
[1725741999042,1.77851,2280.6,2280.4,0.43852]
[1725742000850,0.43852,2280.5,2280.4,0.43852]
[1725742001034,1.77851,2280.6,2280.4,0.43852]
[1725742002742,1.77851,2280.6,2280.1,1.7724]
[1725742002743,0.43852,2280.5,2280.3,0.43854]
[1725742002940,3.2078,2280.4,2280.3,0.43854]
[1725742003741,3.64634,2280.4,2280.2,0.43856]
[1725742003948,0.9628,2280.3,2280.2,0.43856]
[1725742004537,0.43857,2280.2,2280.0,0.4386]
[1725742004749,4.108,2280.1,2279.9,0.89662]
[1725742004935,4.108,2280.1,2279.9,0.458]
[1725742005133,4.108,2280.1,2279.9,0.89663]
[1725742005134,0.4822,2280.0,2279.9,0.89663]
[1725742006341,3.6694,2280.1,2280.0,0.43861]
[1725742007844,3.2078,2280.1,2280.0,0.43861]
[1725742008038,3.6477,2280.1,2280.0,0.43861]
[1725742008239,4.08629,2280.1,2280.0,0.43861]
[1725742009037,3.6477,2280.1,2280.0,0.43861]
[1725742014946,4.08629,2280.1,2280.0,0.43861]
[1725742015653,4.08629,2280.1,2279.9,0.89662]
[1725742015959,4.08629,2280.1,2280.0,0.43861]
[1725742016650,0.43864,2279.9,2279.7,0.90866]
[1725742016850,3.6781,2279.8,2279.7,0.43866]
[1725742017043,4.1474,2279.8,2279.7,0.43866]
[1725742018458,0.43863,2280.0,2279.9,0.43863]
[1725742018956,4.82503,2280.0,2279.9,0.43863]
[1725742019555,3.2078,2280.1,2279.9,0.43863]
[1725742019861,3.64641,2280.1,2279.9,0.43863]
[1725742020157,4.11481,2280.1,2279.9,0.43863]
[1725742020349,0.43861,2280.0,2279.9,0.43863]
[1725742020754,3.6762,2280.1,2279.6,1.14601578]
[1725742021059,0.43868,2279.7,2279.5,0.4377]
[1725742021247,0.43868,2279.7,2279.5,1.3178]
[1725742022556,3.69,2279.8,2279.5,0.4414]
[1725742022557,0.43869,2279.6,2279.5,0.4414]
[1725742022751,0.89319,2279.6,2279.5,0.4414]
[1725742023351,0.43871,2279.5,2279.3,9.01487822]
[1725742023554,3.64651,2279.5,2279.4,0.4706]
[1725742028452,0.43873,2279.4,2279.2,0.90845]
[1725742028655,0.91093,2279.4,2279.2,0.90845]
[1725742030249,0.91093,2279.4,2279.3,0.43875]
[1725742030852,0.4722,2279.4,2279.3,0.43875]
[1725742031960,3.68,2279.4,2279.3,0.43875]
[1725742032277,3.64645,2279.8,2279.3,11.7272]
[1725742032456,3.64645,2279.8,2279.4,0.4431]
[1725742032457,0.43868,2279.7,2279.4,0.4431]
[1725742032655,0.43868,2279.7,2279.5,0.9007]
[1725742033149,0.43868,2279.7,2279.6,0.43869]
[1725742033353,3.64645,2279.8,2279.6,0.43869]
[1725742033560,3.64645,2279.8,2279.5,0.462]
[1725742033561,3.2078,2279.8,2279.7,0.89897]
[1725742036769,3.2078,2279.8,2279.7,5.28537]
[1725742036955,3.64641,2280.1,2279.7,4.8467]
[1725742037264,3.6464,2280.1,2279.9,0.43863]
[1725742037652,3.6464,2280.1,2279.9,0.90983]
[1725742037852,3.6464,2280.1,2279.9,0.4712]
[1725742038062,0.43861,2280.0,2279.9,0.4712]
[1725742038465,1.09659,2279.9,2279.3,1.14601578]
[1725742038662,1.77869,2279.7,2279.4,1.85862]
[1725742038868,1.77869,2279.7,2279.5,0.43871]
[1725742039057,0.4387,2279.6,2279.4,1.85862]
[1725742039252,0.43871,2279.5,2279.4,0.4817]
[1725742039460,5.0275,2279.5,2278.9,3.64662]
[1725742039656,1.77879,2279.1,2278.9,3.6782]
[1725742040062,2.23149,2279.1,2278.9,3.6782]
[1725742040460,4.82681,2279.0,2278.6,0.43888]
[1725742040768,4.82681,2279.0,2278.4,1.14601578]
[1725742040769,4.5478,2278.9,2278.7,0.43886]
[1725742041365,3.2078,2278.9,2278.7,0.43886]
[1725742041766,3.2078,2278.9,2278.8,0.43884]
[1725742042170,7.5958,2278.9,2278.8,0.43884]
[1725742042763,3.2078,2278.9,2278.8,0.43884]
[1725742042963,6.86658,2279.2,2278.8,0.43884]
[1725742043164,0.43879,2279.1,2278.8,0.43884]
[1725742045973,3.2078,2279.2,2279.0,0.4388]
[1725742046481,3.2078,2279.2,2279.1,0.4648]
[1725742046974,3.2078,2279.2,2279.1,0.90359]
[1725742047175,3.2078,2279.2,2279.1,0.4648]
[1725742048565,3.64657,2279.2,2279.1,0.4648]
[1725742049681,0.43879,2279.1,2278.9,0.43882]
[1725742049979,3.64658,2279.2,2278.9,0.43882]
[1725742050178,0.43879,2279.1,2278.9,0.43882]
[1725742051278,3.64658,2279.2,2279.0,0.4388]
[1725742053375,0.43879,2279.1,2279.0,0.4388]
[1725742056881,0.43879,2279.1,2278.9,0.43881]
[1725742057977,0.88349,2279.1,2278.9,0.43881]
[1725742060673,0.88349,2279.1,2279.0,0.4607]
[1725742064882,0.43879,2279.1,2279.0,0.4607]
[1725742065076,0.43879,2279.1,2279.0,0.9032]
[1725742066685,0.43879,2279.1,2279.0,0.4607]
[1725742073499,0.43879,2279.1,2279.0,0.9011]
[1725742076384,3.2078,2279.2,2279.1,0.43879]
[1725742076580,3.2078,2279.2,2279.1,0.89159]
[1725742078590,3.64657,2279.2,2279.1,0.89159]
[1725742080894,3.2078,2279.2,2279.1,0.89159]
[1725742081392,0.43879,2279.1,2279.0,0.9011]
[1725742082096,0.43879,2279.1,2279.0,1.33991]
[1725742082898,3.2078,2279.2,2279.1,0.43879]
[1725742083587,1.77872,2279.5,2279.0,2.04711578]
[1725742083898,1.77872,2279.5,2279.1,1.14601578]
[1725742084091,1.77872,2279.5,2279.2,0.4766]
[1725742084394,1.77872,2279.5,2279.3,0.43874]
[1725742084596,1.77872,2279.5,2279.4,0.4512]
[1725742085495,1.34,2279.5,2279.4,0.4512]
[1725742085700,1.77871,2279.5,2279.4,0.4512]
[1725742086992,1.77871,2279.5,2279.4,0.88993]
[1725742087700,1.77871,2279.5,2279.4,0.4512]
[1725742088400,1.77871,2279.5,2279.0,1.72500592]
[1725742088401,0.43879,2279.2,2279.0,1.58481578]
[1725742088699,3.64659,2279.2,2279.0,2.03511578]
[1725742088898,0.43879,2279.1,2279.0,2.03511578]
[1725742089105,3.64658,2279.2,2279.0,2.03511578]
[1725742089293,3.2078,2279.2,2279.1,0.43879]
[1725742092702,2.259,2279.4,2279.3,0.43875]
[1725742092898,3.2078,2279.4,2279.3,0.43875]
[1725742093201,7.595,2279.4,2279.3,0.43875]
[1725742093702,3.2078,2279.4,2279.3,0.43875]
[1725742099891,3.2078,2279.4,2279.3,1.80265]
[1725742105904,3.2078,2279.8,2279.3,15.33399578]
[1725742106107,3.2078,2279.8,2279.7,0.43867]
[1725742106609,3.6809,2280.2,2279.7,4.3864]
[1725742106808,3.6809,2280.2,2279.8,1.3499]
[1725742107002,3.6809,2280.2,2280.1,0.43859]
[1725742107707,4.1192,2280.2,2280.1,0.43859]
[1725742109608,3.6809,2280.2,2280.1,0.43859]
[1725742110000,3.2078,2280.2,2280.1,0.43859]
[1725742111308,3.2078,2280.2,2280.1,4.82419]
[1725742113411,3.2078,2280.2,2280.1,6.16419]
[1725742113616,3.2078,2280.2,2280.1,6.63859]
[1725742114714,3.2078,2280.2,2280.1,5.29859]
[1725742115021,3.2078,2280.2,2280.1,0.43859]
[1725742115905,3.6734,2280.2,2280.1,0.43859]
[1725742120811,4.11198,2280.2,2280.0,0.43861]
[1725742121013,0.4539,2280.1,2280.0,0.43861]
[1725742126014,0.4539,2280.1,2279.7,0.9092]
[1725742126216,0.4815,2280.0,2279.9,0.43862]
[1725742126419,0.4815,2280.0,2279.5,0.4687]
[1725742126624,3.64646,2279.8,2279.4,0.4774]
[1725742126918,0.9077,2279.7,2279.6,0.43868]
[1725742127116,1.3892,2279.7,2279.6,0.43868]
[1725742131724,3.2078,2279.8,2279.6,0.43868]
[1725742132121,3.2078,2279.8,2279.7,0.4726]
[1725742132322,3.2078,2279.8,2279.7,0.91127]
[1725742133125,3.64645,2279.8,2279.7,0.91127]
[1725742133613,3.64645,2279.8,2279.7,0.4726]
[1725742134018,3.64645,2279.8,2279.7,0.91127]
[1725742135125,0.43868,2279.7,2279.3,2.2501]
[1725742135428,0.43871,2279.5,2279.4,0.4395]
[1725742135625,4.5478,2279.5,2279.1,0.43877]
[1725742135925,4.58063,2279.4,2279.2,0.43876]
[1725742136319,0.4381,2279.3,2279.2,0.43876]
[1725742137129,0.4381,2279.3,2279.1,0.43877]
[1725742140223,4.1419,2279.4,2279.0,0.8839]
[1725742140425,3.99609606,2280.4,2279.0,0.8839]
[1725742140426,3.2078,2279.7,2279.2,1.34]
[1725742140627,3.2078,2279.7,2279.4,0.43872]
[1725742140820,3.2078,2279.7,2279.5,0.43871]
[1725742141025,3.2078,2279.7,2279.5,0.43869]
[1725742141227,3.2078,2279.7,2279.6,0.449]
[1725742142636,3.2078,2279.8,2279.6,0.88769]
[1725742142839,3.2078,2279.8,2279.7,0.4525]
[1725742143438,3.2078,2279.8,2279.7,0.89117]
[1725742144631,3.2078,2279.8,2279.7,0.4525]
[1725742153445,3.2078,2279.8,2279.6,0.449]
[1725742154352,4.8666,2279.7,2279.1,1.14601578]
[1725742154541,6.11145,2279.6,2279.0,4.6083]
[1725742154744,3.2078,2279.3,2279.0,5.0471]
[1725742155948,3.2078,2279.3,2279.0,4.6083]
[1725742156148,3.64655,2279.3,2279.0,4.6083]
[1725742156346,4.12675,2279.3,2279.0,4.6083]
[1725742156758,3.688,2279.3,2279.0,4.6083]
[1725742156951,4.12675,2279.3,2279.0,4.6083]
[1725742157655,4.12675,2279.3,2279.0,0.4393]
[1725742157857,4.12676,2279.3,2279.0,0.4393]
[1725742158245,0.43877,2279.2,2279.0,0.4393]
[1725742158451,0.91487,2279.2,2279.0,0.4393]
[1725742161951,0.43879,2279.1,2279.0,0.4393]
[1725742162153,0.91488,2279.2,2279.0,0.4393]
[1725742162855,0.43879,2279.1,2279.0,0.4393]
[1725742163048,0.43879,2279.1,2278.5,8.52281578]
[1725742163049,6.82498,2279.1,2278.5,4.169]
[1725742163251,6.4761,2279.2,2278.1,9.20161899]
[1725742163252,0.43894,2278.3,2278.1,1.14601578]
[1725742163462,1.34,2278.3,2278.0,1.3533]
[1725742163757,1.77894,2278.3,2278.0,1.3533]
[1725742164061,0.43897,2278.2,2278.0,0.9013]
[1725742164362,3.2078,2278.1,2278.0,0.9013]
[1725742171556,3.2078,2278.1,2277.6,4.169]
[1725742171557,13.5974,2278.1,2277.6,4.169]
[1725742171760,3.23,2278.2,2277.4,1.3919]
[1725742171761,3.64684,2277.8,2277.4,1.3919]
[1725742171966,3.2078,2277.8,2277.4,1.3919]
[1725742172467,3.2078,2277.5,2277.4,1.3919]
[1725742172665,3.64689,2277.5,2277.4,0.4715]
[1725742172964,3.64689,2277.5,2276.6,0.4712]
[1725742172965,13.599,2277.5,2276.6,0.4712]
[1725742173163,3.44654529,2277.6,2276.0,12.33180592]
[1725742173164,6.4378,2276.7,2276.0,5.89400592]
[1725742173355,3.64711,2276.4,2276.1,0.22122319]
[1725742173568,6.87711,2276.4,2275.8,0.9427]
[1725742173857,6.87711,2276.4,2274.7,1.14430627]
[1725742173858,1.53826,2275.4,2274.7,1.14430627]
[1725742174059,3.2078,2275.5,2275.4,1.76423]
[1725742174261,3.2078,2275.5,2274.8,0.4492]
[1725742174456,3.23,2275.3,2275.2,1.76423]
[1725742174662,3.23,2275.3,2274.3,0.4397]
[1725742174663,3.23,2275.3,2274.3,0.4492]
[1725742174889,3.23,2274.9,2274.8,1.76423]
[1725742175078,3.2078,2275.0,2274.3,0.4492]
[1725742175277,5.23045,2276.1,2273.5,0.00345004]
[1725742175278,3.23,2274.8,2273.9,3.2078]
[1725742175587,3.23,2274.8,2274.5,0.71169]
[1725742175787,3.2078,2274.6,2274.2,0.4504]
[1725742175985,3.23,2274.8,2274.7,0.71169]
[1725742176288,3.23,2274.8,2274.2,0.89013]
[1725742176289,3.2078,2274.8,2274.6,0.71169]
[1725742176488,6.4378,2274.8,2274.6,0.71169]
[1725742176784,3.2078,2274.8,2274.7,0.71169]
[1725742177790,10.8338,2274.8,2273.9,3.42480649]
[1725742178085,6.4378,2274.8,2274.6,0.71169]
[1725742178480,3.2078,2274.8,2274.7,0.71169]
[1725742182883,3.2078,2274.8,2274.7,1.15133]
[1725742183090,3.2078,2274.8,2274.7,0.71169]
[1725742185391,3.2078,2274.8,2274.7,1.15133]
[1725742190800,3.23,2275.1,2274.8,0.43962]
[1725742191000,3.2078,2274.9,2274.8,0.43962]
[1725742191493,3.2078,2274.9,2274.8,1.15131]
[1725742193203,6.4378,2275.3,2275.2,0.43954]
[1725742193502,6.4378,2275.3,2275.1,1.15124]
[1725742193892,6.4378,2275.3,2275.2,0.43954]
[1725742194296,10.833,2275.3,2275.2,0.43954]
[1725742194703,0.66051939,2275.6,2275.4,0.4395]
[1725742194704,3.23,2275.5,2275.4,0.4395]
[1725742194897,3.23,2275.5,2275.4,0.71169]
[1725742196401,3.23,2275.5,2275.4,1.15119]
[1725742196710,3.2078,2275.9,2275.8,0.43942]
[1725742196891,3.2078,2276.2,2276.1,0.43935]
[1725742197098,3.2078,2276.2,2276.0,1.15106]
[1725742197295,3.23,2276.1,2276.0,1.15106]
[1725742198297,3.23,2276.1,2276.0,0.71169]
[1725742198499,3.23,2276.1,2276.0,1.15107]
[1725742201507,3.2078,2276.2,2276.1,0.43936]
[1725742201704,3.2078,2276.2,2276.1,1.15105]
[1725742203099,3.2078,2276.2,2275.7,4.75677]
[1725742203100,0.43937,2276.1,2275.8,0.43942]
[1725742203303,0.43937,2276.1,2276.0,0.71169]
[1725742203600,3.64717,2276.1,2276.0,0.71169]
[1725742204296,6.87717,2276.1,2276.0,0.71169]
[1725742207309,6.4378,2276.1,2276.0,0.71169]
[1725742208308,6.4378,2276.1,2276.0,1.15107]
[1725742209202,6.4378,2276.1,2276.0,0.71169]
[1725742209909,3.23,2276.1,2276.0,0.71169]
[1725742210099,6.4378,2276.1,2276.0,0.71169]
[1725742210701,6.4378,2276.1,2276.0,1.15107]
[1725742215407,3.23,2276.1,2276.0,1.15107]
[1725742215608,6.4378,2276.1,2276.0,1.15107]
[1725742216207,3.64716,2276.1,2276.0,0.71169]
[1725742216414,3.2078,2276.1,2276.0,1.15107]
[1725742216810,3.2078,2276.1,2276.0,2.24954]
[1725742220823,3.2078,2276.1,2276.0,1.15107]
[1725742221705,3.64716,2276.1,2276.0,0.71169]
[1725742221905,3.2078,2276.1,2276.0,0.71169]
[1725742222920,3.2078,2276.1,2276.0,1.15107]
[1725742225619,0.43942,2275.8,2275.5,0.9044]
[1725742225825,3.2078,2275.6,2275.5,1.34388]
[1725742226214,3.2078,2275.6,2275.5,2.05557]
[1725742227620,3.23,2275.8,2275.5,1.61609]
[1725742227917,3.23,2275.8,2275.7,1.15113]
[1725742231323,3.2078,2275.9,2275.8,0.43942]
[1725742231527,3.2078,2275.9,2275.8,1.15111]
[1725742232026,3.23,2276.0,2275.9,0.4394]
[1725742232224,3.23,2276.0,2275.9,0.71169]
[1725742233726,3.23,2276.0,2275.9,1.15109]
[1725742239028,6.4378,2276.0,2275.9,1.15109]
[1725742239624,3.2078,2276.0,2275.9,1.15109]
[1725742239824,3.23,2276.2,2276.1,0.43936]
[1725742240027,3.23,2276.2,2276.1,1.15105]
[1725742240434,3.2078,2276.3,2276.2,0.43935]
[1725742240634,3.2078,2276.3,2276.2,1.15104]
[1725742241634,3.2078,2276.3,2276.2,0.71169]
[1725742241830,8.03993,2276.3,2276.0,2.53830627]
[1725742242039,3.66937,2276.1,2275.9,1.58369627]
[1725742242337,3.2078,2276.0,2275.9,1.58369627]
[1725742242726,3.2078,2276.0,2275.9,2.29538627]
[1725742243436,3.2078,2276.0,2275.9,0.71169]
[1725742243742,3.64718,2276.0,2275.9,0.71169]
[1725742244129,8.04078,2276.0,2275.8,1.14430627]
[1725742244331,3.64719,2276.0,2275.8,0.71169]
[1725742244530,3.64719,2276.0,2275.8,1.15111]
[1725742244735,3.2078,2276.0,2275.8,1.15111]
[1725742245137,3.64719,2276.0,2275.8,1.15111]
[1725742245434,3.2078,2276.0,2275.8,1.15111]
[1725742245629,3.64719,2276.0,2275.8,1.15111]
[1725742246025,3.2078,2276.0,2275.8,1.15111]
[1725742247028,3.64719,2276.0,2275.8,1.15111]
[1725742247432,3.2078,2276.0,2275.9,0.4394]
[1725742247832,1.09856,2275.8,2275.6,1.15152445]
[1725742248035,0.4395,2275.5,2275.2,1.15152445]
[1725742248241,6.4378,2275.3,2275.2,1.15152445]
[1725742248435,6.4378,2275.3,2275.1,1.59107445]
[1725742248640,6.4378,2275.3,2275.2,0.71169]
[1725742251539,3.23,2275.3,2275.2,0.71169]
[1725742251745,6.4378,2275.3,2275.2,0.71169]
[1725742254643,6.87732,2275.3,2275.2,0.71169]
[1725742255742,6.4378,2275.3,2275.2,0.71169]
[1725742255946,6.87732,2275.3,2275.2,0.71169]
[1725742256535,6.4378,2275.3,2275.2,0.71169]
[1725742257050,3.23,2275.3,2275.2,0.71169]
[1725742257350,6.87732,2275.3,2275.2,0.71169]
[1725742261350,6.4378,2275.3,2275.2,1.15123]
[1725742261542,6.4378,2275.3,2275.2,0.71169]
[1725742261743,3.2078,2275.3,2275.2,1.15123]
[1725742262948,3.23,2275.5,2275.4,0.4395]
[1725742263148,3.23,2275.5,2275.4,1.15119]
[1725742265055,3.66948,2275.5,2275.4,0.71169]
[1725742266556,3.23,2275.5,2275.4,0.71169]
[1725742267456,3.23,2275.5,2275.4,1.15119]
[1725742267646,3.23,2275.5,2275.4,0.71169]
[1725742268047,3.23,2275.5,2275.4,1.16539]
[1725742268256,3.66948,2275.5,2275.4,1.16539]
[1725742272955,0.43956,2275.1,2275.0,2.50862445]
[1725742273160,6.87736,2275.1,2275.0,1.3571]
[1725742273358,6.87736,2275.1,2275.0,1.61449]
[1725742277760,6.4378,2275.1,2275.0,1.61449]
[1725742277961,6.4378,2275.1,2275.0,2.05407]
[1725742278159,6.87736,2275.1,2275.0,1.61449]
[1725742279065,6.4378,2275.1,2275.0,2.05407]
[1725742279461,3.2078,2275.1,2275.0,2.05407]
[1725742280363,3.2078,2275.1,2275.0,3.15302]
[1725742280957,3.23,2275.3,2275.0,3.15302]
[1725742280958,3.23,2275.3,2275.2,0.43954]
[1725742281164,3.23,2275.3,2275.2,1.15123]
[1725742287771,3.23,2275.3,2275.2,0.71169]
[1725742287967,4.12552,2275.3,2275.2,0.71169]
[1725742291576,3.23,2275.3,2275.2,1.15123]
[1725742294682,3.23,2275.3,2275.2,1.60943]
[1725742295786,3.23,2275.3,2275.2,2.76095445]
[1725742296585,3.23,2275.3,2275.2,4.95949194]
[1725742297594,3.23,2275.3,2275.2,4.96008234]
[1725742297889,3.2078,2275.8,2275.7,0.43944]
[1725742298084,3.2078,2275.8,2275.7,1.15113]
[1725742298485,7.6022,2275.8,2275.5,2.05055785]
[1725742298689,3.66946,2275.7,2275.6,0.71169]
[1725742299085,4.10826,2275.7,2275.6,0.71169]
[1725742300685,3.6688,2275.7,2275.6,1.15115]
[1725742300996,3.23,2275.7,2275.6,1.15115]
[1725742302288,6.4378,2275.7,2275.6,1.15115]
[1725742303186,5.49306,2275.6,2275.5,0.94095784]
[1725742303390,0.43956,2275.1,2274.9,1.59091144]
[1725742303590,6.87736,2275.1,2275.0,0.71169]
[1725742303787,6.4378,2275.1,2275.0,1.15127]
[1725742304389,6.4378,2275.1,2275.0,0.71169]
[1725742304890,6.87736,2275.1,2275.0,0.71169]
[1725742306097,0.4396,2274.9,2274.7,0.4644]
[1725742306398,6.4378,2274.8,2274.7,0.71169]
[1725742306601,6.4378,2274.8,2274.7,1.15133]
[1725742306794,6.4378,2274.8,2274.7,0.71169]
[1725742309200,17.93285,2274.8,2274.4,2.54372144]
[1725742309393,0.43971,2274.3,2274.1,1.15132144]
[1725742309603,6.4378,2274.2,2273.7,1.15132144]
[1725742309790,6.4378,2273.8,2273.5,1.15477148]
[1725742310001,3.23,2273.6,2273.5,0.00345004]
[1725742310205,3.66985,2273.6,2273.5,0.00345004]
[1725742310410,0.43993,2273.2,2273.0,0.5133]
[1725742310704,3.2078,2273.1,2273.0,0.5133]
[1725742310888,2.54766255,2273.1,2273.0,1.66495]
[1725742311093,3.2078,2273.6,2273.0,7.22499]
[1725742311297,3.23,2273.9,2273.5,0.43986]
[1725742311501,3.23,2273.9,2273.6,1.4275]
[1725742311705,3.23,2273.9,2273.7,0.43982]
[1725742312005,3.2078,2274.0,2273.8,0.43979]
[1725742312205,3.2078,2274.0,2273.9,0.43979]
[1725742312403,6.8854,2274.7,2274.2,0.43973]
[1725742312597,6.87744,2274.7,2274.3,0.444]
[1725742312795,6.4378,2274.7,2274.3,0.444]
[1725742313502,6.4378,2274.7,2274.3,0.9574]
[1725742313808,6.4378,2274.7,2274.3,1.39711]
[1725742314008,6.4378,2274.7,2274.4,0.43969]
[1725742314702,6.4378,2274.7,2274.4,0.43968]
[1725742315100,6.4378,2274.7,2274.3,0.9574]
[1725742315496,6.4378,2274.7,2274.3,1.85691]
[1725742316305,6.4378,2274.7,2274.4,0.43969]
[1725742319199,3.2078,2274.7,2274.3,1.4172]
[1725742320005,3.2078,2274.7,2274.6,0.43965]
[1725742320811,3.2078,2275.0,2274.6,4.396]
[1725742321110,3.2078,2275.0,2274.4,4.30703]
[1725742322107,3.2078,2275.0,2274.9,0.4396]
[1725742323713,3.2078,2275.0,2274.9,4.8356]
[1725742326199,3.23,2275.3,2275.2,0.43954]
[1725742328110,3.23,2275.3,2275.1,0.43955]
[1725742328500,3.23,2275.3,2275.2,0.43954]
[1725742331221,3.66953,2275.3,2275.0,1.41727]
[1725742332014,3.66953,2275.3,2275.1,0.43956]
[1725742334019,3.23,2275.3,2275.1,0.43956]
[1725742334319,3.66952,2275.3,2275.1,0.43956]
[1725742334519,3.2078,2275.4,2275.3,0.43952]
[1725742334710,7.3398,2275.8,2275.0,6.43574144]
[1725742335017,0.43951,2275.4,2275.0,0.9777]
[1725742335204,3.23,2275.7,2275.0,0.9777]
[1725742335410,0.43947,2275.6,2275.3,0.4395]
[1725742335915,0.43943,2275.8,2275.1,1.3224708]
[1725742336108,1.0362,2276.0,2275.7,0.43943]
[1725742336312,0.43941,2275.9,2275.7,0.43943]
[1725742337216,1.0362,2276.0,2275.8,0.43941]
[1725742337419,6.87717,2276.1,2275.8,0.43941]
[1725742337616,6.87717,2276.1,2275.5,0.9948]
[1725742337820,0.43939,2276.0,2275.8,0.43941]
[1725742338127,0.43939,2276.0,2275.7,0.43943]
[1725742339214,0.43939,2276.0,2275.8,0.43942]
[1725742340518,6.4378,2276.1,2275.9,0.43939]
[1725742340714,3.2078,2276.1,2275.5,4.2026]
[1725742340913,3.2078,2276.1,2276.0,0.43938]
[1725742341611,3.2078,2276.1,2275.9,0.43939]
[1725742342224,3.2078,2276.1,2276.0,0.43938]
[1725742342921,0.4825,2276.4,2276.2,0.43933]
[1725742343111,0.4825,2276.4,2275.8,4.30634]
[1725742343112,0.92181,2276.4,2276.1,0.43935]
[1725742343423,0.43933,2276.3,2276.1,0.43935]
[1725742344025,0.92182,2276.4,2276.2,0.43934]
[1725742347820,3.2078,2276.3,2276.2,0.43934]
[1725742362632,3.2078,2276.3,2276.0,1.0109]
[1725742362834,3.2078,2276.3,2275.7,10.6068]
[1725742362835,8.722,2276.2,2275.7,4.169]
[1725742363020,8.722,2276.2,2275.3,6.903]
[1725742363021,3.66941,2275.9,2275.6,0.43945]
[1725742363322,0.43943,2275.8,2275.6,0.43945]
[1725742363928,3.66942,2275.9,2275.6,0.43945]
[1725742364629,3.66941,2275.9,2275.7,0.43944]
[1725742365032,8.06381,2275.9,2275.7,0.43944]
[1725742365426,3.66941,2275.9,2275.7,0.43944]
[1725742366118,0.43947,2275.6,2275.0,3.23]
[1725742366323,0.43947,2275.6,2275.4,0.43949]
[1725742367633,3.2078,2275.7,2275.6,0.43946]
[1725742368033,3.2078,2275.7,2275.3,1.0492]
[1725742368235,0.43948,2275.6,2275.3,1.0492]
[1725742368534,3.64725,2275.7,2275.3,1.0492]
[1725742368830,3.64725,2275.7,2275.4,0.4395]
[1725742369738,3.64725,2275.7,2275.5,0.43948]
[1725742370129,0.43947,2275.6,2275.4,0.43949]